Cogmind - Beta 13 @@@ ROGUE MODE // 2024.03.14 @ 14:30:39 Player: strategineer Result: Destroyed by Y-45 Defender with Beam Rifle Performance ------------- Evolutions (1) 500 Regions Visited (2) 400 Robots Destroyed (26) 130 Value Destroyed (490) 490 Prototype IDs (0) 0 Alien Tech Used (0) 0 Bonus (20) 20 TOTAL SCORE: 1540 Bonus ------- High Alert Combat Kills 20 Cogmind --------- Core Integrity 0/400 Matter 232/300 Energy 99/100 System Corruption 0% Temperature Cool (27) Movement Treading (160) Location -9/Materials Parts ------- > --- POWER (1) -------- (None) > --- PROPULSION (2) --- Light Treads Aluminum Leg > --- UTILITY (3) ------ Medium Storage Unit > --- WEAPON (3) ------- Heavy Assault Rifle > --- INVENTORY (10) --- High-capacity Matter Pod (0) Signal Interpreter Weapon Shielding Peak State ------------ > --- POWER ------------ Light Ion Engine > --- PROPULSION ------- Aluminum Leg Aluminum Leg > --- UTILITY ---------- Medium Storage Unit Structural Scanner Tractor Beam > --- WEAPON ----------- Medium Laser Spread Laser Light Assault Rifle > --- INVENTORY -------- Light Ion Engine Light Treads Light Treads Aluminum Leg High-capacity Matter Pod Signal Interpreter Small Laser Light Assault Rifle Grenade Launcher Mining Laser [Rating: 11] Favorites ----------- Power Light Ion Engine Engine Light Ion Engine Propulsion Aluminum Leg Treads Light Treads Leg Aluminum Leg Utility Medium Storage Unit Device Structural Scanner Storage Medium Storage Unit Protection Medium Armor Plating Weapon Light Assault Rifle Energy Gun Small Laser Ballistic Gun Light Assault Rifle Launcher Grenade Launcher Special Weapon Mining Laser Build | -11 -10 -9 ------- Run | Yrd Mat Mat Slots Evolved 2 | . . 2 Power . | . . . Propulsion . | . . . Utility 1 | . . 1 Weapon 1 | . . 1 Parts Attached 26 | . 7 19 Power 2 | . 1 1 Engine 2 | . 1 1 Core . | . . . Reactor . | . . . Propulsion 5 | . . 5 Treads 2 | . . 2 Leg 3 | . . 3 Wheel . | . . . Hover . | . . . Flight . | . . . Utility 5 | . 2 3 Device 2 | . 1 1 Storage 1 | . 1 . Processor . | . . . Hackware . | . . . Protection 2 | . . 2 Artifact . | . . . Weapon 14 | . 4 10 Energy Gun 7 | . 2 5 Energy Cannon . | . . . Ballistic Gun 3 | . . 3 Ballistic Cannon . | . . . Launcher 3 | . 2 1 Special Weapon 1 | . . 1 Impact Weapon . | . . . Slashing Weapon . | . . . Piercing Weapon . | . . . Special Melee Weapon . | . . . Unidentified Prototypes . | . . . Parts Lost 15 | . . 15 Power 2 | . . 2 Propulsion 3 | . . 3 Utility 3 | . . 3 Weapon 7 | . . 7 Highest Loss Streak 15 | . . 15 To Critical Strikes . | . . . Average Slot Usage (%) 90 | . 90 90 Engine 11 | . 14 9 Treads 1 | . . 2 Leg 22 | . 28 17 Device 12 | . 5 18 Storage 12 | . 14 11 Energy Gun 14 | . 11 17 Ballistic Gun 12 | . 14 10 Launcher 1 | . 2 . Naked Turns . | . . . Heaviest Build 21 | 11 18 21 Greatest Support 40 | 20 20 40 Greatest Overweight (x) 5 | . . 5 Average Overweight (x) . | . . . Largest Inventory Capacity 10 | . 10 10 Average Capacity 9 | . 9 10 Most Carried 10 | . 10 10 Average Carried 8 | . 8 8 Final Capacity 10 | 8 10 10 Final Carried 8 | 6 8 3 Class Distribution -------------------- 55% | Mutant 44% | Skirmisher Dominant Class ---------------- Mutant | -10/Materials Skirmisher | -9/Materials Resources | -11 -10 -9 ----------- Run | Yrd Mat Mat Matter Collected 445 | 158 164 123 Remotely 72 | . . 72 Salvage Created 658 | . 280 378 Parts 35 | . 7 28 Haulers Intercepted . | . . . Recyclers Shooed 2 | . 2 . Parts Field Recycled . | . . . Retrieved Matter . | . . . Parts Self-Destructed . | . . . Prevented . | . . . Kills | -11 -10 -9 ------- Run | Yrd Mat Mat Combat Hostiles Destroyed 23 | . 5 18 Guns 17 | . 1 16 AOE 6 | . 4 2 Classes Destroyed 4 | . 3 1 Recycler 3 | . 3 . Swarmer 16 | . 3 13 Grunt 6 | . 2 4 Sentry 1 | . . 1 Best Kill Streak 6 | . 5 6 Combat Bots Only 6 | . 3 6 Max Kills in Single Turn 3 | . 2 3 Gunslinging 2 | . . 2 Exploded 2 | . 2 2 Melee . | . . . Uniques/NPCs Destroyed . | . . . Combat | -11 -10 -9 -------- Run | Yrd Mat Mat Hostile Shots Fired 200 | . 16 184 Missed 20 | . 5 15 Damage Taken 1986 | . 122 1864 Core 427 | . 24 403 Absorbed by Shields . | . . . Core Remaining (%) 95 | 100 90 . Volleys Fired 62 | . 12 50 Largest 3 | . 2 3 Hottest 135 | . 50 135 Shots Fired 123 | . 17 106 Gun 117 | . 12 105 Cannon . | . . . Launcher 6 | . 5 1 Special . | . . . Kinetic 54 | . 12 42 Thermal 47 | . . 47 Explosive 6 | . 5 1 Electromagnetic 16 | . . 16 Robot Hit Streak 12 | . 6 12 Robot Miss Streak 6 | . 1 6 Penetration Max . | . . . Secondary Targets 7 | . . 7 Max Gunslinging Chain 2 | . . 2 Shots Hit Robots 68 | . 8 60 Core Hits 46 | . 14 32 Critical Kills 1 | . . 1 Critical Parts Destroyed . | . . . Critical Strikes 3 | . . 3 Burn 2 | . . 2 Destroy 1 | . . 1 Melee Attacks . | . . . Impact . | . . . Slashing . | . . . Piercing . | . . . Sneak Attacks . | . . . Combat Hostiles . | . . . Follow-up Attacks . | . . . Damage Inflicted 1412 | . 601 811 Guns 729 | . 38 691 Cannons . | . . . Explosions 681 | . 563 118 Melee . | . . . Ramming 2 | . . 2 Kinetic 273 | . 38 235 Thermal 381 | . . 381 Explosive 681 | . 563 118 Electromagnetic 75 | . . 75 Impact . | . . . Slashing . | . . . Piercing . | . . . Highest Corruption . | . . . Average Corruption . | . . . Corruption Purged . | . . . Corruption Blocked . | . . . Overload Shots . | . . . Overflow Damage 26 | . 26 . Projectiles . | . . . Explosions 26 | . 26 . Melee . | . . . Knockbacks . | . . . Impact . | . . . Kinetic . | . . . Secondary . | . . . Self-Inflicted Damage 32 | . 15 17 Shots 2 | . 1 1 Rammed 1 | . . 1 Targets Rammed 1 | . . 1 Kicked . | . . . Crushed . | . . . Highest Temperature 474 | . 16 474 Average Temperature 155 | . 8 164 Received Heat Transfer 600 | . 27 573 Effects 3 | . . 3 Energy Bleed 1 | . . 1 Interference 1 | . . 1 Short Circuit 1 | . . 1 Siege Activations . | . . . Robots Corrupted . | . . . Combat Hostiles . | . . . Parts Fried . | . . . Impact Corruptions . | . . . Robots Melted . | . . . Combat Hostiles . | . . . Parts Melted 1 | . . 1 Heat Transferred 1012 | . . 1012 Parts Sabotaged . | . . . Parts Stolen . | . . . Parts Stripped . | . . . Power Chain Reactions . | . . . Alert | -11 -10 -9 ------- Run | Yrd Mat Mat Peak Influence 474 | . 210 474 Initial 88 | . . 88 Average 190 | . 116 253 Maximum Alert Level 2 | . 1 2 Low Security (%) 67 | . 90 48 Level 1 23 | . 9 34 Level 2 9 | . . 17 Level 3 . | . . . Level 4 . | . . . Level 5 . | . . . High Security . | . . . Max Security . | . . . Squads Dispatched 1 | . . 1 Investigation . | . . . Extermination . | . . . Reinforcement 1 | . . 1 Assault . | . . . Garrison . | . . . Intercept . | . . . Searches Triggered . | . . . Construction Impeded . | . . . Haulers Reinforced . | . . . Active Scanning Responses . | . . . Cargo Convoy Interrupts . | . . . Stealth | -11 -10 -9 --------- Run | Yrd Mat Mat Distress Signals 4 | . 2 2 Communications Jammed . | . . . Distress Signals . | . . . Times Spotted 31 | . 8 23 Peak Tracking Total 10 | . 5 10 Tactical Retreats . | . . . Traps | -11 -10 -9 ------- Run | Yrd Mat Mat Traps Triggered . | . . . Indirectly . | . . . Trap Hack Attempts . | . . . Triggered . | . . . Disarmed . | . . . Reprogrammed . | . . . Reused . | . . . Traps Extracted . | . . . Installed . | . . . Triggered . | . . . Machines | -11 -10 -9 ---------- Run | Yrd Mat Mat Machines Disabled 5 | . 2 3 Max in Single Turn 2 | . 1 2 Machines Repaired . | . . . Machines Dismantled . | . . . Machines Sabotaged . | . . . Overloaded Fab Kills . | . . . Hacking | -11 -10 -9 --------- Run | Yrd Mat Mat Machines Accessed 2 | . 1 1 Terminals 1 | . 1 . Fabricators . | . . . Repair Stations . | . . . Recycling Units 1 | . . 1 Scanalyzers . | . . . Garrison Access . | . . . Total Hacks 4 | . 1 3 Successful 2 | . 1 1 Failed 2 | . . 2 Catastrophic 1 | . . 1 Database Lockouts . | . . . Manual . | . . . Terminals 1 | . 1 . Fabricators . | . . . Repair Stations . | . . . Recycling Units 3 | . . 3 Scanalyzers . | . . . Garrison Access . | . . . Terminal Hacks 1 | . 1 . Zone Layout 1 | . 1 . Fabricator Hacks . | . . . Repair Station Hacks . | . . . Recycling Unit Hacks 1 | . . 1 Report Inventory 1 | . . 1 Scanalyzer . | . . . Garrison Access Hacks . | . . . Unauthorized Hacks . | . . . Terminals . | . . . Fabricators . | . . . Repair Stations . | . . . Recycling Units . | . . . Scanalyzers . | . . . Garrison Access . | . . . Data Cores Recovered . | . . . Used . | . . . Hacking Detections 2 | . 1 1 Full Trace Events . | . . . Feedback Events . | . . . Feedback Blocked . | . . . Robot Schematics Acquired . | . . . Robots Built . | . . . Authchips . | . . . Time . | . . . Total Robot Build Rating . | . . . Part Schematics Acquired . | . . . Parts Built . | . . . Authchips . | . . . Time . | . . . Total Part Build Rating . | . . . Parts Repaired . | . . . Time . | . . . Parts Recycled . | . . . Recycled Matter . | . . . Retrieved Matter . | . . . Retrieved Components . | . . . Parts Scanalyzed . | . . . Part Schematics Acquired . | . . . Parts Damaged . | . . . Bothacking | -11 -10 -9 ------------ Run | Yrd Mat Mat Used RIF Installer . | . . . Robots Hacked . | . . . Non-combat . | . . . Combat . | . . . Robot Hacks Applied . | . . . Relay Couplers Released . | . . . Fabnet Peak Effective % . | . . . Robots Rewired . | . . . Allies Hacked . | . . . Hacks Repelled . | . . . Allies | -11 -10 -9 -------- Run | Yrd Mat Mat Total Allies . | . . . Largest Group . | . . . Highest-Rated Group . | . . . Highest-Rated Ally . | . . . Total Orders . | . . . Ally Attacks . | . . . Total Damage . | . . . Kills . | . . . Allies Corrupted . | . . . Allies Melted . | . . . Intel | -11 -10 -9 ------- Run | Yrd Mat Mat Robot Analysis Total . | . . . Derelict Logs Recovered . | . . . Drone Launches . | . . . Drone Recoveries . | . . . Exploration | -11 -10 -9 ------------- Run | Yrd Mat Mat Turns Passed 734 | . 337 397 Spaces Moved 397 | 1 239 157 Core 1 | . . 1 Treads 10 | . . 10 Legs 386 | 1 239 146 Wheels . | . . . Hover . | . . . Flight . | . . . Fastest Speed 120 | 120 120 120 Average Speed 125 | 120 120 133 Slowest Speed 300 | 120 120 300 Overloaded Moves . | . . . Propulsion Burnouts . | . . . Robots Hopped . | . . . Cave-ins Triggered . | . . . Exploration Rate (%) 17 | 2 31 18 Regions Visited 2 Branch Regions . Pre-discovered Areas . | . . . Known Exits Taken . | . . . Unknown Exits Taken 2 | 1 1 . Scrap Searched . | . . . Spaces Dug . | . . . Terrain Destroyed 14 | . 9 5 Melee . | . . . Projectile . | . . . AOE 14 | . 9 5 Terrain Rammed . | . . . Walls Destroyed . | . . . Machines Disabled . | . . . Actions | -11 -10 -9 --------- Run | Yrd Mat Mat Total 537 | . 275 262 Wait 28 | . 8 20 Move 395 | . 238 157 Hop . | . . . Pick Up 12 | . 4 8 Fast Attach 6 | . 2 4 Attach 12 | . 2 10 Detach 4 | . 3 1 Swap 8 | . 3 5 Drop 9 | . 3 6 Fire 62 | . 12 50 Melee . | . . . Ram . | . . . Kick . | . . . Crush 1 | . . 1 Escape Stasis . | . . . Rewire . | . . . Trap . | . . . Miscellaneous . | . . . Route ------- -11/Scrapyard -10/Materials (discovered 2 exits: *Mat / [Sub]) -9/Materials History --------- Turn | Location | Event 1 | -11/Scrapyard | Discovered new exit (range 0) 1 | -11/Scrapyard | Entered Materials 219 | -10/Materials | Discovered new exit (range 6) 268 | -10/Materials | Discovered new exit (range 11) 317 | -10/Materials | Build established: Mutant 338 | -10/Materials | Entered another Materials area 338 | -9/Materials | Evolved 2 slots: Utility x1, Weapon x1 620 | -9/Materials | Build established: Skirmisher 662 | -9/Materials | Core integrity fell below 50% 697 | -9/Materials | Core integrity fell below 20% 735 | -9/Materials | Destroyed by Y-45 Defender with Beam Rifle Last Messages --------------- 00717_ Lgt. Treads destroyed. 00718_ U-05 Engineer lays Concrete. 00718_ Acquired Hvy. Assault Rifle. 00719_ U-05 Engineer lays Concrete. 00719_ Lgt. Ion Engine destroyed. 00721_ U-05 Engineer lays Concrete. 00721_ Structural Scanner destroyed. 00721_ K-01 Serf collects debris. 00722_ U-05 Engineer lays Concrete. 00722_ G-34 Mercenary destroyed. 00723_ Acquired 42 matter. 00723_ U-05 Engineer lays Concrete. 00725_ K-01 Serf collects debris. 00725_ U-05 Engineer lays Concrete. 00728_ K-01 Serf collects debris. 00728_ U-05 Engineer lays Concrete. 00732_ K-01 Serf collects debris. 00732_ U-05 Engineer lays Concrete. 00735_ K-01 Serf collects debris. 00735_ Critical hit (Burn: +37). Map ----- +----------------------------------------------------+ | ?????????????????????????????????????????????????? | | ?????????????????????????????????????????????????? | | ?????????????????????????????????????????????????? | | ?????????????????????????????????????????????????? | | ?????????????????????????????????????????????????? | | ?????????????????????????????????????????????????? | | ?????????????????????????????????????????????????? | | ?????????????????????????????????????????????????? | | ?????????????????????????????????????????????????? | | ?????????????????????????????????????????????????? | | ?????????????????????????????????????????????????? | | ?????????????????????????????????????????????????? | | ?????????????????????????????????????????????????? | | ?????????????????????????????????????????????????? | | ?????????????????????????????????????????????????? | | ?????????????????????????????????????????????????? | | ?????????????????????????????????????????????????? | | ????????????????????#####????????????????????????? | | ???????????????????########## "???????????????? | | ???????????????????### ###########???????????????? | | ???????????????????## # ##?????????????? | | ???????????????????## !!! # """ ##?????????????? | | ???????????????????## !!! # """ ##?????????????? | | ???????????????????## # """ ##?????????????? | | ???????????????????## #! ##?????????????? | | ???????????????????##[ u@*#= """ ##?????????????? | | ???????????????????##%""Y%*# """ ##?????????????? | | ???????????????????## k !%# """ ##?????????????? | | ???????????????????## !%# ##?????????????? | | ???????????????????## ""==# """ ##?????????????? | | ???????????????????## """%%# """ ##?????????????? | | ?????????????# ???## """**# ""?????????????????? | | ?????????????## ? ### !%# #??????????????? | | ????????????? # #######u####+####??????????????? | | ????????????? + ##### ????????? | | ????????????? # #######/????????? | | ????????????? # ????????? | | ????????????? ########### #### ????????? | | ????????????? ###### #### ???????????? | | ??????????????????## ##??????????????? | | ??????????????????## ##??????????????? | | ??????????????????## ##??????????????? | | ????????????????#### ### ###??????????????? | | ????????????????######+#####= ###??????????????? | | ????????????????##[! %+* =[##???????????????? | | ????????????????## != = =#### ##???????????????? | | ????????????????## ####%##???????????????? | | ????????????????## """ """ ####=##???????????????? | | ????????????????## """ """ ####*##???????????????? | | ????????????????## """ """ #### ##???????????????? | +----------------------------------------------------+ Best States ------------- Heat Dissipation 28 Energy Generation 10 Energy Capacity 125 Matter Stores 300 Matter Capacity 300 Sight Range 16 Terrain Scan Density 10 Armor Coverage 225 Evasion (%) 55 Recoil Reduction 2 Item Schematics ----------------- None Robot Schematics ------------------ None Fabricated ------------ Nothing Alien Tech Used ----------------- None Achievements -------------- Gunslinger Challenges ------------ None Game ------ Seed HeartSeismicProtection Manual? 0 Play Time 00:15:49 Cumulative 27.9 hours Start 2024.03.14 @ 14:10:52 End 2024.03.14 @ 14:30:39 Sessions 1 Manual Loads 0 Difficulty Rogue Special Mode None Game No. 36 Rogue 36 Adventurer 0 Explorer 0 Win Type - Total 0 Types 0/0/0/0/0/0/0/0/0 Lore% 9 Gallery% 32 Achievement% 25 Wizard Run 0 Options --------- Layout 2 ASCII 1 Keyboard 1 Movement Numpad Keybinds 1 Fullscreen 1 Font 32/SmallcapsGlow Map View 50x44 Zoom Use 0% Tactical HUD 1 Map Filters NONE Filters NONE Steam 1 RUN: 3d80920c-03ae-41e4-8277-da2b407eb017